Workbook

Sheet キャッシュフロー計算書
B1: キャッシュ フロー 計算書
B3: 会計年度の開始日: | D3: (前) 設立 | E3: =UPPER(TEXT(FiscalYearStartDate,"m月")) -> 1月 | F3: =UPPER(TEXT(EOMONTH(FiscalYearStartDate,1),"m月")) -> 2月 | G3: =UPPER(TEXT(EOMONTH(FiscalYearStartDate,2),"m月")) -> 3月 | H3: =UPPER(TEXT(EOMONTH(FiscalYearStartDate,3),"m月")) -> 4月 | I3: =UPPER(TEXT(EOMONTH(FiscalYearStartDate,4),"m月")) -> 5月 | J3: =UPPER(TEXT(EOMONTH(FiscalYearStartDate,5),"m月")) -> 6月 | K3: =UPPER(TEXT(EOMONTH(FiscalYearStartDate,6),"m月")) -> 7月 | L3: =UPPER(TEXT(EOMONTH(FiscalYearStartDate,7),"m月")) -> 8月 | M3: =UPPER(TEXT(EOMONTH(FiscalYearStartDate,8),"m月")) -> 9月 | N3: =UPPER(TEXT(EOMONTH(FiscalYearStartDate,9),"m月")) -> 10月 | O3: =UPPER(TEXT(EOMONTH(FiscalYearStartDate,10),"m月")) -> 11月 | P3: =UPPER(TEXT(EOMONTH(FiscalYearStartDate,11),"m月")) -> 12月 | R3: 合計
B4: 2012-01-05 | D4: EST | E4: =FiscalYearStartDate -> 2012-01-05 | F4: =EOMONTH(E4,0)+DAY(FiscalYearStartDate) -> 2012-02-05 | G4: =EOMONTH(F4,0)+DAY(FiscalYearStartDate) -> 2012-03-05 | H4: =EOMONTH(G4,0)+DAY(FiscalYearStartDate) -> 2012-04-05 | I4: =EOMONTH(H4,0)+DAY(FiscalYearStartDate) -> 2012-05-05 | J4: =EOMONTH(I4,0)+DAY(FiscalYearStartDate) -> 2012-06-05 | K4: =EOMONTH(J4,0)+DAY(FiscalYearStartDate) -> 2012-07-05 | L4: =EOMONTH(K4,0)+DAY(FiscalYearStartDate) -> 2012-08-05 | M4: =EOMONTH(L4,0)+DAY(FiscalYearStartDate) -> 2012-09-05 | N4: =EOMONTH(M4,0)+DAY(FiscalYearStartDate) -> 2012-10-05 | O4: =EOMONTH(N4,0)+DAY(FiscalYearStartDate) -> 2012-11-05 | P4: =EOMONTH(O4,0)+DAY(FiscalYearStartDate) -> 2012-12-05 | R4: 項目 EST
B6: 手元現金 (月初) | D6: 10000 | E6: =D48 -> 10000 | F6: =E48 -> -12500 | G6: 4500 | H6: -100 | I6: 22400 | J6: 26900 | K6: 26900 | L6: 26900 | M6: 26900 | N6: 26900 | O6: 26900 | P6: 26900 | R6: =P6 -> 26900
B8: 現金収入
B9: 現金売上 | E9: 12500 | F9: 12000 | G9: 13000 | H9: 10000 | R9: =SUM(現金収入[[#This Row],[Period 0]:[Period 12]]) -> 47500
B10: 銀行口座への入金 | H10: 7500 | I10: 4500 | R10: =SUM(現金収入[[#This Row],[Period 0]:[Period 12]]) -> 12000
B11: 融資/その他の現金注入 | E11: 5000 | F11: 5000 | G11: 5000 | H11: 5000 | R11: =SUM(現金収入[[#This Row],[Period 0]:[Period 12]]) -> 20000
B12: 合計 | D12: =SUBTOTAL(109,現金収入[Period 0]) -> 0 | E12: =SUBTOTAL(109,現金収入[Period 1]) -> 17500 | F12: =SUBTOTAL(109,現金収入[Period 2]) -> 17000 | G12: =SUBTOTAL(109,現金収入[Period 3]) -> 18000 | H12: =SUBTOTAL(109,現金収入[Period 4]) -> 22500 | I12: =SUBTOTAL(109,現金収入[Period 5]) -> 4500 | J12: =SUBTOTAL(109,現金収入[Period 6]) -> 0 | K12: =SUBTOTAL(109,現金収入[Period 7]) -> 0 | L12: =SUBTOTAL(109,現金収入[Period 8]) -> 0 | M12: =SUBTOTAL(109,現金収入[Period 9]) -> 0 | N12: =SUBTOTAL(109,現金収入[Period 10]) -> 0 | O12: =SUBTOTAL(109,現金収入[Period 11]) -> 0 | P12: =SUBTOTAL(109,現金収入[Period 12]) -> 0 | R12: =SUBTOTAL(109,現金収入[Total]) -> 79500
B13: 利用可能現金合計 (精算前) | D13: =D6+SUM(現金収入[Period 0]) -> 10000 | E13: =E6+SUM(現金収入[Period 1]) -> 27500 | F13: =F6+SUM(現金収入[Period 2]) -> 4500 | G13: =G6+SUM(現金収入[Period 3]) -> 22500 | H13: =H6+SUM(現金収入[Period 4]) -> 22400 | I13: =I6+SUM(現金収入[Period 5]) -> 26900 | J13: =J6+SUM(現金収入[Period 6]) -> 26900 | K13: =K6+SUM(現金収入[Period 7]) -> 26900 | L13: =L6+SUM(現金収入[Period 8]) -> 26900 | M13: =M6+SUM(現金収入[Period 9]) -> 26900 | N13: =N6+SUM(現金収入[Period 10]) -> 26900 | O13: =O6+SUM(現金収入[Period 11]) -> 26900 | P13: =P6+SUM(現金収入[Period 12]) -> 26900 | R13: =R6+SUM(現金収入[Total]) -> 106400
B15: 現金支払い
B16: 購入 (商品) | E16: 40000 | G16: 22600 | R16: =SUM(支払現金[[#This Row],[Period 0]:[Period 12]]) -> 62600
B17: 購入 (内容を記入) | R17: =SUM(支払現金[[#This Row],[Period 0]:[Period 12]]) -> 0
B18: 購入 (内容を記入) | R18: =SUM(支払現金[[#This Row],[Period 0]:[Period 12]]) -> 0
B19: 総賃金 (正確な引き出し) | R19: =SUM(支払現金[[#This Row],[Period 0]:[Period 12]]) -> 0
B20: 給与経費 (税など) | R20: =SUM(支払現金[[#This Row],[Period 0]:[Period 12]]) -> 0
B21: 外部サービス | R21: =SUM(支払現金[[#This Row],[Period 0]:[Period 12]]) -> 0
B22: 必需品 (オフィス、運営) | R22: =SUM(支払現金[[#This Row],[Period 0]:[Period 12]]) -> 0
B23: 修理 、メンテナンス | R23: =SUM(支払現金[[#This Row],[Period 0]:[Period 12]]) -> 0
B24: 広告 | R24: =SUM(支払現金[[#This Row],[Period 0]:[Period 12]]) -> 0
B25: 車両、配達、旅費 | R25: =SUM(支払現金[[#This Row],[Period 0]:[Period 12]]) -> 0
B26: 会計、法律 | R26: =SUM(支払現金[[#This Row],[Period 0]:[Period 12]]) -> 0
B27: 家賃 | R27: =SUM(支払現金[[#This Row],[Period 0]:[Period 12]]) -> 0
B28: 電話 | R28: =SUM(支払現金[[#This Row],[Period 0]:[Period 12]]) -> 0
B29: 公益事業 | R29: =SUM(支払現金[[#This Row],[Period 0]:[Period 12]]) -> 0
B30: 保険料 | R30: =SUM(支払現金[[#This Row],[Period 0]:[Period 12]]) -> 0
B31: 税金 (不動産その他) | R31: =SUM(支払現金[[#This Row],[Period 0]:[Period 12]]) -> 0
B32: 利子 | R32: =SUM(支払現金[[#This Row],[Period 0]:[Period 12]]) -> 0
B33: その他の費用 (内容を記入) | R33: =SUM(支払現金[[#This Row],[Period 0]:[Period 12]]) -> 0
B34: その他 (内容を記入) | R34: =SUM(支払現金[[#This Row],[Period 0]:[Period 12]]) -> 0
B35: その他 (内容を記入) | R35: =SUM(支払現金[[#This Row],[Period 0]:[Period 12]]) -> 0
B36: 雑費 | R36: =SUM(支払現金[[#This Row],[Period 0]:[Period 12]]) -> 0
B37: 合計 | D37: =SUBTOTAL(109,支払現金[Period 0]) -> 0 | E37: =SUBTOTAL(109,支払現金[Period 1]) -> 40000 | F37: =SUBTOTAL(109,支払現金[Period 2]) -> 0 | G37: =SUBTOTAL(109,支払現金[Period 3]) -> 22600 | H37: =SUBTOTAL(109,支払現金[Period 4]) -> 0 | I37: =SUBTOTAL(109,支払現金[Period 5]) -> 0 | J37: =SUBTOTAL(109,支払現金[Period 6]) -> 0 | K37: =SUBTOTAL(109,支払現金[Period 7]) -> 0 | L37: =SUBTOTAL(109,支払現金[Period 8]) -> 0 | M37: =SUBTOTAL(109,支払現金[Period 9]) -> 0 | N37: =SUBTOTAL(109,支払現金[Period 10]) -> 0 | O37: =SUBTOTAL(109,支払現金[Period 11]) -> 0 | P37: =SUBTOTAL(109,支払現金[Period 12]) -> 0 | R37: =SUBTOTAL(109,支払現金[Total]) -> 62600
B39: 現金支払い (非損益)
B40: 融資元本支払い | R40: =SUM(支払現金2[[#This Row],[Period 0]:[Period 12]]) -> 0
B41: 資本財購入 (内容を記入) | R41: =SUM(支払現金2[[#This Row],[Period 0]:[Period 12]]) -> 0
B42: その他の設立費用 | R42: =SUM(支払現金2[[#This Row],[Period 0]:[Period 12]]) -> 0
B43: 準備金および第三者預託 | R43: =SUM(支払現金2[[#This Row],[Period 0]:[Period 12]]) -> 0
B44: 所有者の引き出し | R44: =SUM(支払現金2[[#This Row],[Period 0]:[Period 12]]) -> 0
B45: 合計 | D45: =SUBTOTAL(109,支払現金2[Period 0]) -> 0 | E45: =SUBTOTAL(109,支払現金2[Period 1]) -> 0 | F45: =SUBTOTAL(109,支払現金2[Period 2]) -> 0 | G45: =SUBTOTAL(109,支払現金2[Period 3]) -> 0 | H45: =SUBTOTAL(109,支払現金2[Period 4]) -> 0 | I45: =SUBTOTAL(109,支払現金2[Period 5]) -> 0 | J45: =SUBTOTAL(109,支払現金2[Period 6]) -> 0 | K45: =SUBTOTAL(109,支払現金2[Period 7]) -> 0 | L45: =SUBTOTAL(109,支払現金2[Period 8]) -> 0 | M45: =SUBTOTAL(109,支払現金2[Period 9]) -> 0 | N45: =SUBTOTAL(109,支払現金2[Period 10]) -> 0 | O45: =SUBTOTAL(109,支払現金2[Period 11]) -> 0 | P45: =SUBTOTAL(109,支払現金2[Period 12]) -> 0 | R45: =SUBTOTAL(109,支払現金2[Total]) -> 0
B46: 総現金支払い | D46: =SUM(支払現金[Period 0],支払現金2[Period 0]) -> 0 | E46: =SUM(支払現金[Period 1],支払現金2[Period 1]) -> 40000 | F46: =SUM(支払現金[Period 2],支払現金2[Period 2]) -> 0 | G46: =SUM(支払現金[Period 3],支払現金2[Period 3]) -> 22600 | H46: =SUM(支払現金[Period 4],支払現金2[Period 4]) -> 0 | I46: =SUM(支払現金[Period 5],支払現金2[Period 5]) -> 0 | J46: =SUM(支払現金[Period 6],支払現金2[Period 6]) -> 0 | K46: =SUM(支払現金[Period 7],支払現金2[Period 7]) -> 0 | L46: =SUM(支払現金[Period 8],支払現金2[Period 8]) -> 0 | M46: =SUM(支払現金[Period 9],支払現金2[Period 9]) -> 0 | N46: =SUM(支払現金[Period 10],支払現金2[Period 10]) -> 0 | O46: =SUM(支払現金[Period 11],支払現金2[Period 11]) -> 0 | P46: =SUM(支払現金[Period 12],支払現金2[Period 12]) -> 0 | R46: =SUM(支払現金[Total],支払現金2[Total]) -> 62600
B48: 現金持ち高 (月末) | D48: =D13-D46 -> 10000 | E48: -12500 | F48: 4500 | G48: -100 | H48: 22400 | I48: 26900 | J48: 26900 | K48: 26900 | L48: 26900 | M48: 26900 | N48: 26900 | O48: 26900 | P48: 26900 | R48: =R13-R46 -> 43800
